Cogmind - Beta 10.2 @@@ ROGUE MODE // 2021.08.06 @ 22:06:18 Player: JamesGecko Result: Destroyed by G-34 Mercenary with Small Laser Performance ------------- Evolutions (0) 0 Regions Visited (2) 400 Robots Destroyed (9) 45 Value Destroyed (175) 175 Prototype IDs (0) 0 Alien Tech Used (0) 0 Bonus (0) 0 TOTAL SCORE: 620 Bonus ------- None Cogmind --------- Core Integrity 0/250 Matter 270/300 Energy 78/250 System Corruption 0% Temperature Cool (6) Movement Core (650) Ox12 Location -10/Mines Parts ------- > --- POWER (1) -------- Ion Engine > --- PROPULSION (2) --- (None) > --- UTILITY (2) ------ High-capacity Storage Unit > --- WEAPON (2) ------- Assault Rifle > --- INVENTORY (12) --- Light Nuclear Core Explosive Trap Explosive Trap Peak State ------------ > --- POWER ------------ Light Ion Engine > --- PROPULSION ------- Aluminum Leg Aluminum Leg > --- UTILITY ---------- Heat Sink High-capacity Storage Unit > --- WEAPON ----------- Small Laser Assault Rifle > --- INVENTORY -------- Aluminum Leg Small Laser Light Assault Rifle [Rating: 7] Favorites ----------- Power Light Ion Engine Engine Light Ion Engine Power Core Light Nuclear Core Propulsion Aluminum Leg Leg Aluminum Leg Utility High-capacity Storage Unit Device Heat Sink Storage High-capacity Storage Unit Weapon Assault Rifle Energy Gun EM Pulse Gun Ballistic Gun Assault Rifle Build | -11 -10 -10 ------- Run | Scr Mat Min Slots Evolved . | . . . Power . | . . . Propulsion . | . . . Utility . | . . . Weapon . | . . . Parts Attached 17 | 6 4 7 Power 4 | 1 . 3 Engine 3 | 1 . 2 Core 1 | . . 1 Reactor . | . . . Propulsion 4 | 2 1 1 Treads . | . . . Leg 4 | 2 1 1 Wheel . | . . . Hover . | . . . Flight . | . . . Utility 2 | 1 1 . Device 1 | 1 . . Storage 1 | . 1 . Processor . | . . . Hackware . | . . . Protection . | . . . Artifact . | . . . Weapon 7 | 2 2 3 Energy Gun 4 | 1 1 2 Energy Cannon . | . . . Ballistic Gun 3 | 1 1 1 Ballistic Cannon . | . . . Launcher . | . . . Special Weapon . | . . . Impact Weapon . | . . . Slashing Weapon . | . . . Piercing Weapon . | . . . Special Melee Weapon . | . . . Unidentified Prototypes . | . . . Parts Lost 9 | . 2 7 Power 1 | . 1 . Propulsion 3 | . . 3 Utility 1 | . . 1 Weapon 4 | . 1 3 Highest Loss Streak 4 | . 1 4 Average Slot Usage (%) 76 | . 86 68 Engine 2 | . 5 . Leg 20 | . 28 14 Device 13 | . 14 13 Storage 14 | . 14 14 Energy Gun 11 | . 9 12 Ballistic Gun 13 | . 14 13 Naked Turns . | . . . Heaviest Build 39 | 7 39 39 Greatest Support 20 | 20 20 20 Greatest Overweight (x) 12 | . 1 12 Average Overweight (x) 1 | . . 3 Largest Inventory Capacity 12 | 4 12 12 Average Capacity 10 | 4 11 12 Most Carried 8 | 4 7 8 Average Carried 5 | 1 5 6 Final Capacity 12 | 4 12 12 Final Carried 5 | 3 5 3 Class Distribution -------------------- 100% | Mutant Dominant Class ---------------- Mutant | -10/Materials Mutant | -10/Mines Resources | -11 -10 -10 ----------- Run | Scr Mat Min Matter Collected 365 | 262 65 38 Remotely . | . . . Salvage Created 216 | 34 131 51 Parts 23 | 4 12 7 Haulers Intercepted . | . . . Recyclers Shooed . | . . . Parts Field Recycled . | . . . Retrieved Matter . | . . . Parts Self-Destructed . | . . . Prevented . | . . . Kills | -11 -10 -10 ------- Run | Scr Mat Min Combat Hostiles Destroyed 9 | 1 5 3 Guns 9 | 1 5 3 Classes Destroyed 2 | 1 1 . Swarmer 6 | . 3 3 Grunt 3 | 1 2 . Best Kill Streak 3 | 1 3 3 Combat Bots Only 3 | 1 3 3 Max Kills in Single Turn 1 | 1 1 1 Gunslinging . | . . . Exploded . | . . . Melee . | . . . Uniques/NPCs Destroyed . | . . . Combat | -11 -10 -10 -------- Run | Scr Mat Min Damage Taken 962 | 50 473 439 Core 253 | 10 130 113 Absorbed by Shields . | . . . Core Remaining (%) 96 | 96 . . Volleys Fired 36 | 4 23 9 Largest 2 | 2 2 2 Hottest 60 | 60 60 60 Shots Fired 58 | 8 38 12 Gun 58 | 8 38 12 Cannon . | . . . Launcher . | . . . Special . | . . . Kinetic 34 | 4 23 7 Thermal 24 | 4 15 5 Explosive . | . . . Electromagnetic . | . . . Robot Hit Streak 8 | 4 8 3 Robot Miss Streak 4 | 1 4 3 Penetration Max . | . . . Secondary Targets 1 | . 1 . Max Gunslinging Chain 1 | . 1 . Shots Hit Robots 32 | 7 18 7 Core Hits 14 | 2 9 3 Critical Hits 1 | 1 . . Critical Kills . | . . . Critical Parts Destroyed 1 | 1 . . Melee Attacks . | . . . Impact . | . . . Slashing . | . . . Piercing . | . . . Sneak Attacks . | . . . Combat Hostiles . | . . . Follow-up Attacks . | . . . Damage Inflicted 332 | 77 204 51 Guns 332 | 77 204 51 Cannons . | . . . Explosions . | . . . Melee . | . . . Ramming . | . . . Kinetic 125 | 34 61 30 Thermal 207 | 43 143 21 Explosive . | . . . Electromagnetic . | . . . Impact . | . . . Slashing . | . . . Piercing . | . . . Highest Corruption . | . . . Average Corruption . | . . . Corruption Purged . | . . . Overload Shots . | . . . Overflow Damage . | . . . Projectiles . | . . . Explosions . | . . . Melee . | . . . Knockbacks . | . . . Impact . | . . . Kinetic . | . . . Secondary . | . . . Self-Inflicted Damage . | . . . Shots . | . . . Rammed . | . . . Targets Rammed . | . . . Kicked . | . . . Crushed . | . . . Highest Temperature 24 | 24 . . Average Temperature 16 | 16 . . Received Heat Transfer 369 | 30 195 144 Siege Activations . | . . . Robots Corrupted . | . . . Combat Hostiles . | . . . Parts Fried . | . . . Impact Corruptions . | . . . Robots Melted . | . . . Combat Hostiles . | . . . Parts Melted . | . . . Heat Transferred 475 | 100 325 50 Parts Sabotaged . | . . . Parts Stolen . | . . . Parts Stripped . | . . . Power Chain Reactions . | . . . Missiles Intercepted . | . . . Alert | -11 -10 -10 ------- Run | Scr Mat Min Peak Influence 190 | 20 190 113 Initial 73 | . 13 73 Average 94 | 3 110 106 Maximum Alert Level . | . . . Low Security (%) 100 | 100 100 100 Level 1 . | . . . Level 2 . | . . . Level 3 . | . . . Level 4 . | . . . Level 5 . | . . . High Security . | . . . Max Security . | . . . Squads Dispatched . | . . . Investigation . | . . . Extermination . | . . . Reinforcement . | . . . Assault . | . . . Garrison . | . . . Intercept . | . . . Construction Impeded . | . . . Haulers Reinforced . | . . . Stealth | -11 -10 -10 --------- Run | Scr Mat Min Distress Signals . | . . . Communications Jammed . | . . . Distress Signals . | . . . Times Spotted 18 | 1 12 5 Peak Tracking Total 3 | 1 3 3 Tactical Retreats 2 | . 2 . Traps | -11 -10 -10 ------- Run | Scr Mat Min Traps Triggered . | . . . Indirectly . | . . . Trap Hack Attempts . | . . . Triggered . | . . . Disarmed . | . . . Reprogrammed . | . . . Reused . | . . . Traps Extracted . | . . . Installed 3 | . . 3 Triggered . | . . . Machines | -11 -10 -10 ---------- Run | Scr Mat Min Machines Disabled . | . . . Max in Single Turn . | . . . Machines Sabotaged . | . . . Garrisons Compromised . | . . . Overloaded Fab Kills . | . . . Fab Network Shutdowns . | . . . Hacking | -11 -10 -10 --------- Run | Scr Mat Min Machines Accessed 2 | . 2 . Terminals . | . . . Fabricators . | . . . Repair Stations 1 | . 1 . Recycling Units 1 | . 1 . Scanalyzers . | . . . Garrison Access . | . . . Total Hacks 6 | . 6 . Successful 6 | . 6 . Failed . | . . . Catastrophic . | . . . Database Lockouts . | . . . Manual . | . . . Terminals . | . . . Fabricators . | . . . Repair Stations 2 | . 2 . Recycling Units 4 | . 4 . Scanalyzers . | . . . Garrison Access . | . . . Terminal Hacks . | . . . Fabricator Hacks . | . . . Repair Station Hacks 2 | . 2 . Scan Component 1 | . 1 . Repair 1 | . 1 . Recycling Unit Hacks 4 | . 4 . Recycle Component 1 | . 1 . Process 1 | . 1 . Retrieve Matter 1 | . 1 . Retrieve Components 1 | . 1 . Scanalyzer . | . . . Garrison Access Hacks . | . . . Unauthorized Hacks . | . . . Terminals . | . . . Fabricators . | . . . Repair Stations . | . . . Recycling Units . | . . . Scanalyzers . | . . . Garrison Access . | . . . Data Cores Recovered . | . . . Used . | . . . Hacking Detections 2 | . 2 . Full Trace Events . | . . . Feedback Events . | . . . Feedback Blocked . | . . . Robot Schematics Acquired . | . . . Robots Built . | . . . Matter . | . . . Time . | . . . Total Robot Build Rating . | . . . Part Schematics Acquired . | . . . Parts Built . | . . . Matter . | . . . Time . | . . . Total Part Build Rating . | . . . Parts Repaired 1 | . 1 . Time 26 | . 26 . Parts Recycled 1 | . 1 . Recycled Matter 13 | . 13 . Retrieved Matter 13 | . 13 . Retrieved Components . | . . . Parts Scanalyzed . | . . . Part Schematics Acquired . | . . . Parts Damaged . | . . . Bothacking | -11 -10 -10 ------------ Run | Scr Mat Min Used RIF Installer . | . . . Robots Hacked . | . . . Non-combat . | . . . Combat . | . . . Robot Hacks Applied . | . . . Relay Couplers Released . | . . . Robots Rewired . | . . . Allies Hacked . | . . . Hacks Repelled . | . . . Allies | -11 -10 -10 -------- Run | Scr Mat Min Total Allies . | . . . Largest Group . | . . . Highest-Rated Group . | . . . Highest-Rated Ally . | . . . Total Orders . | . . . Ally Attacks . | . . . Total Damage . | . . . Kills . | . . . Allies Corrupted . | . . . Allies Melted . | . . . Intel | -11 -10 -10 ------- Run | Scr Mat Min Robot Analysis Total . | . . . Derelict Logs Recovered 2 | . . 2 Drone Launches . | . . . Drone Recoveries . | . . . Exploration | -11 -10 -10 ------------- Run | Scr Mat Min Turns Passed 847 | 110 332 405 Spaces Moved 432 | 83 178 171 Core 25 | 22 . 3 Treads . | . . . Legs 407 | 61 178 168 Wheels . | . . . Hover . | . . . Flight . | . . . Fastest Speed 50 | 50 120 150 Average Speed 165 | 101 149 214 Slowest Speed 650 | 120 150 650 Overloaded Moves . | . . . Propulsion Burnouts . | . . . Robots Hopped . | . . . Cave-ins Triggered . | . . . Exploration Rate (%) 20 | 8 27 25 Regions Visited 2 Branch Regions 1 Pre-discovered Areas . | . . . Known Exits Taken . | . . . Unknown Exits Taken 2 | 1 1 . Scrap Searched 1 | . . 1 Spaces Dug . | . . . Terrain Destroyed . | . . . Melee . | . . . Projectile . | . . . AOE . | . . . Terrain Rammed . | . . . Walls Destroyed . | . . . Machines Disabled . | . . . Actions | -11 -10 -10 --------- Run | Scr Mat Min Total 514 | 101 210 203 Wait 3 | . . 3 Move 430 | 82 177 171 Hop . | . . . Pick Up 20 | 9 5 6 Fast Attach . | . . . Attach 15 | 6 3 6 Detach 2 | . 1 1 Swap 2 | . 1 1 Drop 3 | . . 3 Fire 36 | 4 23 9 Melee . | . . . Ram . | . . . Kick . | . . . Crush . | . . . Escape Stasis . | . . . Rewire . | . . . Trap 3 | . . 3 Miscellaneous . | . . . Route ------- -11/Scrapyard -10/Materials -10/Mines History --------- Turn | Location | Event 2 | -11/Scrapyard | Met Revision 17 75 | -11/Scrapyard | Discovered new exit (range 8) 111 | -11/Scrapyard | Entered Materials 152 | -10/Materials | Repaired Sml. Laser 315 | -10/Materials | Build established: Mutant 422 | -10/Materials | Core integrity fell below 50% 432 | -10/Materials | Discovered new exit (range 8) 443 | -10/Materials | Entered Mines 469 | -10/Mines | Learned Materials emergency access door positions 502 | -10/Mines | Lost 3 parts (1n2w) 537 | -10/Mines | Found a hidden stash of uninstalled traps 769 | -10/Mines | Learned 4 Materials zone layouts 833 | -10/Mines | Core integrity fell below 20% 848 | -10/Mines | Destroyed by G-34 Mercenary with Small Laser Last Messages --------------- Acquired EM Pulse Gun. Acquired 10 matter. K-01 Serf collects debris. A stash of uninstalled traps is collected here! K-01 Serf collects debris. Acquired Explosive Trap. Acquired derelict log, extracted data. Data stored: Materials zone layouts (x4). Aluminum Leg destroyed. Dropped Explosive Trap. Installed Explosive Trap. Dropped Explosive Trap. Installed Explosive Trap. Heat Sink destroyed. K-01 Serf collects debris. Aluminum Leg destroyed. Dropped Explosive Trap. Installed Explosive Trap. U-05 Engineer lays Concrete. EM Pulse Gun destroyed. Map ----- +----------------------------------------------------+ | ???????????#### ###??# #??????????# """ #????# | | ???????????????????### #??????????# #????# | | ???????????????????# #??????????###########????# | | ???????????????????# ###?????????????????????????# | | ???????????????????# #???????????????????????????# | | ???????????????????# #???????????????????????????# | | ???????????????????# #???????????????????????????# | | ???????????????????# #???????????????????????##### | | ???????????????????# #???????????????????????# | | ?????????????????### #???????????????????????# ### | | ?????????????????# #????????????????????#### ### | | ?????????????##### ###????????????????????# | | ?????????????# #??????????????????????#""" | | ?????????????# #####??????????????????????#""" | | ?????????????# #?????#####????????????????#""" | | ????????#????# ##???## ##???????????????# | | ???????## ### ##??# #???????????????#""" | | ??????## r #### #???????????????#""" | | ??????# ##^ ##???????????????#""" | | g ^k ##????????????????# | | # u g #?????????????????# | | # #?????????????????# | | ? ##?????????? #???######## | | ? ### ^ ##????? #???????????? | | ? #??## ## #???????????? | | ??##### ##????# @ #???????????? | | ??????####??????# #???????????? | | ????????????????# ###### ### #??????????? | | ????????????????## ##?????###????? #?????????? | | ?????????????????#####???????????????????????????? | | ?????????????????????????????????????????????????? | | ?????????????????????????????????????????????????? | | ?????????????????????????????????????????????????? | | ?????????????????????????????????????????????????? | | ?????????????????????????????????????????????????? | | ?????????????????????????????????????????????????? | | ?????????????????????????????????????????????????? | | ?????????????????????????????????????????????????? | | ?????????????????????????????????????????????????? | | ?????????????????????????????????????????????????? | | ?????????????????????????????????????????????????? | | ?????????????????????????????????????????????????? | | ?????????????????????????????????????????????????? | | | | | | | | | | | | | | | +----------------------------------------------------+ Best States ------------- Heat Dissipation 35 Energy Generation 10 Energy Capacity 125 Matter Stores 300 Matter Capacity 300 Sight Range 16 Terrain Scan Density 10 Evasion (%) 50 Item Schematics ----------------- None Robot Schematics ------------------ None Fabricated ------------ Nothing Alien Tech Used ----------------- None Achievements -------------- None Challenges ------------ None Game ------ Seed AntimatterAerolevProtection Manual? 0 Play Time 00:14:06 Cumulative 1.5 hours Start 2021.08.06 @ 21:52:47 End 2021.08.06 @ 22:06:18 Sessions 1 Manual Loads 0 Difficulty Rogue Special Mode None Game No. 3 Rogue 3 Adventurer 0 Explorer 0 Win Type - Total 0 Types 0/0/0/0/0/0/0/0/0 Lore% 0 Gallery% 4 Achievement% 4 Wizard Run 0 Options --------- ASCII 0 Keyboard 0 Movement Numpad Keybinds 0 Fullscreen 2 Font 20/SmallcapsGlow Map View 66x50 Tactical HUD 0 Map Filters NONE Filters NONE Steam 1 RUN: 333c92bd-4152-4328-a82b-daaf5bb19117